fUSD/lending_fUSD_20240614
["ID","MTS","AMOUNT","RATE_DAILY","PERIOD"]
[329454169,1718374307937,-500.0,0.00024657,3]
[329454170,1718374307954,-500.0,0.00024657,3]
[329454171,1718374307974,-270.31610685,0.00024657,3]
[329454172,1718374307984,-918.51,0.00024657,3]
[329454173,1718374308024,-500.0,0.00024657,3]
[329454174,1718374308035,-500.0,0.00024657,3]
[329454175,1718374308056,-683.33,0.00024657,3]
[329454176,1718374308067,-500.0,0.00024657,3]
[329454177,1718374308088,-500.0,0.00024657,3]
[329454178,1718374308104,-500.0,0.00024657,3]
[329454179,1718374308136,-500.0,0.00024657,3]
[329454180,1718374308148,-500.0,0.00024657,3]
[329454181,1718374308160,-500.0,0.00024657,3]
[329454182,1718374308181,-500.0,0.00024657,3]
[329454183,1718374308193,-602.21,0.00024657,3]
[329454184,1718374308204,-644.48,0.00024657,3]
[329454185,1718374308215,-500.0,0.00024657,3]
[329454186,1718374308229,-2248.72,0.00024657,3]
[329454187,1718374308245,-500.0,0.00024657,3]
[329454188,1718374308256,-500.0,0.00024657,3]
[329454189,1718374308269,-500.0,0.00024657,3]
[329454190,1718374308282,-2837.38,0.00024657,3]
[329454191,1718374308299,-500.0,0.00024657,3]
[329454192,1718374308322,-1370.68,0.00024657,3]
[329454193,1718374308341,-500.0,0.00024657,3]
[329454194,1718374308352,-664.65,0.00024657,3]
[329454195,1718374308400,-500.0,0.00024657,3]
[329454196,1718374308448,-642.17,0.00024657,3]
[329454197,1718374308504,-151.0,0.00024657,7]
[329454198,1718374308533,-151.0,0.00024657,7]
[329454199,1718374308570,-608.32,0.00024657,3]
[329454200,1718374308597,-841.18,0.00024657,3]
[329454201,1718374308608,-3736.29,0.00024657,3]
[329454202,1718374308624,-500.0,0.00024657,3]
[329454203,1718374308636,-507.66676907,0.00024657,3]
[329454204,1718374308647,-500.0,0.00024657,3]
[329454205,1718374308663,-518.31691849,0.00024657,3]
[329454206,1718374308696,-1004.61,0.00024657,3]
[329454207,1718374308706,-982.18,0.00024657,3]
[329454208,1718374308717,-758.79,0.00024657,3]
[329454209,1718374308732,-1098.2,0.00024657,3]
[329454210,1718374308745,-1477.33,0.00024657,3]
[329454211,1718374308761,-500.0,0.00024657,3]
[329454212,1718374308801,-922.2,0.00024657,3]
[329454213,1718374308824,-500.0,0.00024657,3]
[329454214,1718374308837,-500.0,0.00024657,3]
[329454215,1718374308848,-500.0,0.00024657,3]
[329454216,1718374308863,-816.92,0.00024657,3]
[329454217,1718374308885,-151.0,0.00024657,7]
[329454218,1718374308924,-151.0,0.00024657,7]
[329454219,1718374308949,-500.0,0.00024657,3]
[329454220,1718374308976,-880.65,0.00024657,3]
[329454221,1718374308988,-640.64,0.00024657,3]
[329454222,1718374308998,-500.0,0.00024657,3]
[329454223,1718374309009,-519.30470114,0.00024657,3]
[329454224,1718374309021,-715.17,0.00024657,3]
[329454225,1718374309039,-8277.38,0.00024657,3]
[329454226,1718374309072,-151.0,0.00024657,7]
[329454227,1718374309087,-822.26,0.00024657,3]
[329454228,1718374309098,-151.0,0.00024657,7]
[329454229,1718374309110,-9586.73,0.00024657,3]
[329454230,1718374309123,-500.0,0.00024657,3]
[329454231,1718374309148,-2574.26,0.00024657,3]
[329454232,1718374309168,-866.21,0.00024657,3]
[329454233,1718374309192,-500.0,0.00024657,3]
[329454234,1718374309220,-500.0,0.00024657,3]
[329454235,1718374309231,-738.39,0.00024657,3]
[329454236,1718374309268,-500.0,0.00024657,3]
[329454237,1718374309280,-500.0,0.00024657,3]
[329454238,1718374309291,-1145.58,0.00024657,3]
[329454239,1718374309309,-500.0,0.00024657,3]
[329454240,1718374309325,-1007.53,0.00024657,3]
[329454241,1718374309337,-1097.83,0.00024657,3]
[329454242,1718374309352,-814.77,0.00024657,3]
[329454243,1718374309362,-568.52282097,0.00024657,3]
[329454244,1718374309373,-575.10779305,0.00024657,3]
[329454245,1718374309384,-500.0,0.00024657,3]
[329454246,1718374309395,-3640.36,0.00024657,3]
[329454247,1718374309406,-577.91,0.00024657,3]
[329454248,1718374309415,-665.19,0.00024657,3]
[329454249,1718374309436,-151.0,0.00024657,7]
[329454250,1718374309476,-151.0,0.00024657,7]
[329454251,1718374309503,-1074.54,0.00024657,3]
[329454252,1718374309532,-1431.78,0.00024657,3]
[329454253,1718374309543,-917.79,0.00024657,3]
[329454254,1718374309568,-524.05,0.00024657,3]
[329454255,1718374309578,-989.25,0.00024657,7]
[329454256,1718374309589,-500.0,0.00024657,3]
[329454257,1718374309599,-1159.94,0.00024657,3]
[329454258,1718374309610,-513.80631781,0.00024657,3]
[329454259,1718374309650,-3419.19,0.00024657,3]
[329454260,1718374309664,-1158.93,0.00024657,3]
[329454261,1718374309684,-5767.42,0.00024657,3]
[329454262,1718374309695,-1216.46,0.00024657,3]
[329454263,1718374309720,-954.24,0.00024657,3]
[329454264,1718374309744,-500.0,0.00024657,3]
[329454265,1718374309754,-513.23,0.00024657,3]
[329454266,1718374309765,-500.0,0.00024657,3]
[329454267,1718374309777,-1143.41,0.00024657,3]
[329454268,1718374309788,-500.0,0.00024657,3]
[329454269,1718374309808,-2791.61,0.00024657,3]
[329454270,1718374309864,-500.0,0.00024657,3]
[329454271,1718374309880,-500.0,0.00024657,3]
[329454272,1718374309891,-1744.13,0.00024657,3]
[329454273,1718374309901,-563.76,0.00024657,3]
[329454274,1718374309911,-1063.94,0.00024657,3]
[329454275,1718374309923,-500.0,0.00024657,3]
[329454276,1718374309947,-500.0,0.00024657,3]
[329454277,1718374309958,-507.63933073,0.00024657,3]
[329454278,1718374309970,-500.0,0.00024657,3]
[329454279,1718374309981,-563.83,0.00024657,3]
[329454280,1718374309993,-1290.53,0.00024657,3]
[329454281,1718374310016,-500.0,0.00024657,3]
[329454282,1718374310029,-500.0,0.00024657,3]
[329454283,1718374310039,-500.0,0.00024657,3]
[329454284,1718374310078,-500.0,0.00024657,3]
[329454285,1718374310103,-1729.64,0.00024657,3]
[329454286,1718374310127,-1869.28,0.00024657,3]
[329454287,1718374310143,-353.44589562,0.00024657,3]
[329454288,1718374310156,-151.0,0.00024657,7]
[329454289,1718374310168,-500.0,0.00024657,3]
[329454290,1718374310179,-151.0,0.00024657,7]
[329454291,1718374310242,-522.05,0.00024657,3]
[329454292,1718374310253,-500.0,0.00024657,3]
[329454293,1718374310269,-500.0,0.00024657,3]
[329454294,1718374310288,-1122.16,0.00024657,3]
[329454295,1718374310313,-925.97,0.00024657,3]
[329454296,1718374310335,-2122.29,0.00024657,3]
[329454297,1718374310353,-506.23836811,0.00024657,3]
[329454298,1718374310367,-3209.58,0.00024657,3]
[329454299,1718374310377,-1482.61,0.00024657,3]
[329454300,1718374310389,-500.0,0.00024657,3]
[329454301,1718374310401,-869.83,0.00024657,3]
[329454302,1718374310418,-500.0,0.00024657,3]
[329454303,1718374310454,-500.0,0.00024657,3]
[329454304,1718374310466,-1413.02,0.00024657,3]
[329454305,1718374310478,-2108.9,0.00024657,3]
[329454306,1718374310524,-508.78578543,0.00024657,3]
[329454307,1718374310544,-508.31,0.00024657,3]
[329454308,1718374310556,-500.0,0.00024657,3]
[329454309,1718374310576,-882.09,0.00024657,3]
[329454310,1718374310594,-500.0,0.00024657,3]
[329454311,1718374310606,-1309.64,0.00024657,3]
[329454312,1718374310625,-500.0,0.00024657,3]
[329454313,1718374310675,-6459.01,0.00024657,3]
[329454314,1718374310686,-8278.21,0.00024657,3]
[329454315,1718374310716,-599.48,0.00024657,3]
[329454316,1718374310726,-500.0,0.00024657,3]
[329454317,1718374310773,-766.08,0.00024657,3]
[329454318,1718374310792,-1363.23,0.00024657,3]
[329454319,1718374310830,-713.94,0.00024657,3]
[329454320,1718374310860,-500.0,0.00024657,3]
[329454321,1718374310879,-500.0,0.00024657,3]
[329454322,1718374310964,-500.0,0.00024657,3]
[329454323,1718374310976,-500.0,0.00024657,3]
[329454324,1718374310987,-500.0,0.00024657,3]
[329454325,1718374311019,-510.45176525,0.00024657,3]
[329454326,1718374311047,-718.7,0.00024657,3]
[329454327,1718374311072,-967.31,0.00024657,3]
[329454328,1718374311083,-2890.78,0.00024657,3]
[329454329,1718374311096,-540.18241046,0.00024657,3]
[329454330,1718374311113,-6155.02,0.00024657,3]
[329454331,1718374311136,-500.0,0.00024657,3]
[329454332,1718374311149,-500.0,0.00024657,3]
[329454333,1718374311216,-500.0,0.00024657,3]
[329454334,1718374311228,-3858.31,0.00024657,3]
[329454335,1718374311252,-3426.35,0.00024657,3]
[329454336,1718374311276,-511.27410116,0.00024657,3]
[329454337,1718374311303,-600.02428401,0.00024657,3]
[329454338,1718374311328,-151.0,0.00024657,7]
[329454339,1718374311339,-500.0,0.00024657,3]
[329454340,1718374311352,-151.0,0.00024657,7]
[329454341,1718374311363,-1937.42,0.00024657,3]
[329454342,1718374311388,-500.0,0.00024657,3]
[329454343,1718374311406,-602.14,0.00024657,3]
[329454344,1718374311438,-1188.94,0.00024657,3]
[329454345,1718374311452,-500.0,0.00024657,3]
[329454346,1718374311464,-513.62356002,0.00024657,3]
[329454347,1718374311478,-500.0,0.00024657,3]
[329454348,1718374311488,-2061.56,0.00024657,3]
[329454349,1718374311508,-500.0,0.00024657,3]
[329454350,1718374311522,-1016.56,0.00024657,3]
[329454351,1718374311545,-1128.67,0.00024657,3]
[329454352,1718374311557,-1692.02,0.00024657,3]
[329454353,1718374311573,-501.1,0.00024657,3]
[329454354,1718374311583,-500.0,0.00024657,3]
[329454355,1718374311596,-567.38,0.00024657,3]
[329454356,1718374311607,-1002.93,0.00024657,3]
[329454357,1718374311618,-1112.84,0.00024657,3]
[329454358,1718374311628,-544.85,0.00024657,3]
[329454359,1718374311638,-523.136121,0.00024657,3]
[329454360,1718374311650,-689.14,0.00024657,3]
[329454361,1718374311665,-509.62119584,0.00024657,3]
[329454362,1718374311676,-500.0,0.00024657,3]
[329454363,1718374311687,-514.08,0.00024657,3]
[329454364,1718374311699,-1669.34,0.00024657,3]
[329454365,1718374311724,-500.0,0.00024657,3]
[329454366,1718374311735,-3822.81,0.00024657,3]
[329454367,1718374311745,-526.02494974,0.00024657,3]
[329454368,1718374311758,-500.0,0.00024657,3]
[329454369,1718374311769,-500.0,0.00024657,3]
[329454370,1718374311804,-500.0,0.00024657,3]
[329454371,1718374311819,-2384.22,0.00024657,3]
[329454372,1718374311830,-1115.57,0.00024657,3]
[329454373,1718374311841,-500.0,0.00024657,2]
[329454374,1718374311861,-702.55,0.00024657,3]
[329454375,1718374311876,-500.0,0.00024657,3]
[329454376,1718374311908,-500.0,0.00024657,3]
[329454377,1718374311921,-500.0,0.00024657,3]
[329454378,1718374311932,-532.14,0.00024657,3]
[329454379,1718374311943,-2163.42,0.00024657,3]
[329454380,1718374311955,-629.08,0.00024657,3]
[329454381,1718374311969,-873.34,0.00024657,3]
[329454382,1718374311981,-676.86,0.00024657,3]
[329454383,1718374311992,-11835.04,0.00024657,3]
[329454384,1718374312012,-517.50683055,0.00024657,3]
[329454385,1718374312027,-418.69037845,0.00024657,3]
[329454386,1718374312049,-500.0,0.00024657,3]
[329454387,1718374312069,-500.0,0.00024657,3]
[329454388,1718374312085,-521.61220033,0.00024657,3]
[329454389,1718374312108,-1499.12,0.00024657,3]
[329454390,1718374312119,-1109.67,0.00024657,3]
[329454391,1718374312135,-1234.09,0.00024657,3]
[329454392,1718374312150,-500.0,0.00024657,3]
[329454393,1718374312169,-2525.21,0.00024657,3]
[329454394,1718374312184,-608.79770185,0.00024657,3]
[329454395,1718374312209,-520.32380253,0.00024657,3]
[329454396,1718374312220,-500.0,0.00024657,3]
[329454397,1718374312254,-1018.6,0.00024657,3]
[329454398,1718374312269,-500.0,0.00024657,3]
[329454399,1718374312299,-2145.48,0.00024657,3]
[329454400,1718374312324,-500.0,0.00024657,3]
[329454401,1718374312344,-995.35,0.00024657,3]
[329454402,1718374312358,-462.877375,0.00024657,7]
[329454403,1718374312389,-500.0,0.00024657,3]
[329454404,1718374312407,-462.877375,0.00024657,7]
[329454405,1718374312418,-1097.58,0.00024657,3]
[329454406,1718374312429,-512.74153591,0.00024657,3]
[329454407,1718374312442,-500.0,0.00024657,3]
[329454408,1718374312461,-1778.24,0.00024657,3]
[329454409,1718374312473,-500.0,0.00024657,3]
[329454410,1718374312484,-500.0,0.00024657,3]
[329454411,1718374312497,-1628.09,0.00024657,3]
[329454412,1718374312517,-508.79823241,0.00024657,3]
[329454413,1718374312529,-521.10875064,0.00024657,3]
[329454414,1718374312541,-1321.13,0.00024657,3]
[329454415,1718374312554,-500.0,0.00024657,3]
[329454416,1718374312569,-536.60568577,0.00024657,3]
[329454417,1718374312597,-500.0,0.00024657,3]
[329454418,1718374312609,-500.0,0.00024657,3]
[329454419,1718374312622,-633.29,0.00024657,3]
[329454420,1718374312642,-1121.54,0.00024657,3]
[329454421,1718374312655,-1162.14,0.00024657,3]
[329454422,1718374312816,-523.55276942,0.00024657,3]
[329454423,1718374312848,-500.0,0.00024657,3]
[329454424,1718374312880,-500.0,0.00024657,3]
[329454425,1718374312897,-1054.93,0.00024657,3]
[329454426,1718374312908,-187.691041,0.00024657,7]
[329454427,1718374312931,-500.0,0.00024657,3]
[329454428,1718374312943,-462.877375,0.00024657,7]
[329454429,1718374312956,-462.877375,0.00024657,7]
[329454430,1718374312973,-910.65,0.00024657,3]
[329454431,1718374312984,-500.0,0.00024657,3]
[329454432,1718374313000,-500.0,0.00024657,3]
[329454433,1718374313014,-1312.32,0.00024657,3]
[329454434,1718374313025,-1251.31,0.00024657,3]
[329454435,1718374313037,-500.0,0.00024657,3]
[329454436,1718374313056,-500.0,0.00024657,3]
[329454437,1718374313090,-1644.57,0.00024657,3]
[329454438,1718374313112,-151.0,0.00024657,7]
[329454439,1718374313125,-541.23,0.00024657,3]
[329454440,1718374313138,-151.0,0.00024657,7]
[329454441,1718374313150,-500.0,0.00024657,3]
[329454442,1718374313162,-500.0,0.00024657,3]
[329454443,1718374313187,-1918.56,0.00024657,3]
[329454444,1718374313209,-500.0,0.00024657,3]
[329454445,1718374313223,-1028.7,0.00024657,3]
[329454446,1718374313248,-3154.8,0.00024657,3]
[329454447,1718374313300,-500.0,0.00024657,3]
[329454448,1718374313321,-500.0,0.00024657,3]
[329454449,1718374313336,-500.0,0.00024657,3]
[329454450,1718374313348,-500.0,0.00024657,3]
[329454451,1718374313373,-1028.85,0.00024657,3]
[329454452,1718374313396,-1237.01,0.00024657,3]
[329454453,1718374313413,-973.18,0.00024657,3]
[329454454,1718374313428,-500.0,0.00024657,3]
[329454455,1718374313453,-973.91,0.00024657,3]
[329454456,1718374313465,-530.11,0.00024657,3]
[329454457,1718374313477,-500.0,0.00024657,3]
[329454458,1718374313489,-500.0,0.00024657,3]
[329454459,1718374313507,-778.7,0.00024657,3]
[329454460,1718374313519,-500.0,0.00024657,3]
[329454461,1718374313541,-923.86,0.00024657,3]
[329454462,1718374313560,-6916.15,0.00024657,3]
[329454463,1718374313593,-500.0,0.00024657,3]
[329454464,1718374313605,-500.0,0.00024657,3]
[329454465,1718374313624,-500.0,0.00024657,3]
[329454466,1718374313639,-151.0,0.00024657,7]
[329454467,1718374313655,-151.0,0.00024657,7]
[329454468,1718374313673,-500.0,0.00024657,3]
[329454469,1718374313686,-500.0,0.00024657,3]
[329454470,1718374313703,-500.0,0.00024657,3]
[329454471,1718374313720,-500.0,0.00024657,3]
[329454472,1718374313737,-839.63,0.00024657,3]
[329454473,1718374313750,-500.0,0.00024657,3]
[329454474,1718374313764,-549.17,0.00024657,3]
[329454475,1718374313793,-500.0,0.00024657,3]
[329454476,1718374313821,-500.0,0.00024657,3]
[329454477,1718374313845,-1549.83,0.00024657,3]
[329454478,1718374313877,-528.85628684,0.00024657,3]
[329454479,1718374313888,-2671.63,0.00024657,3]
[329454480,1718374313905,-500.0,0.00024657,3]
[329454481,1718374313932,-500.0,0.00024657,3]
[329454482,1718374313956,-822.38,0.00024657,3]
[329454483,1718374313980,-500.0,0.00024657,3]
[329454484,1718374313993,-856.42,0.00024657,3]
[329454485,1718374314006,-500.0,0.00024657,3]
[329454486,1718374314019,-714.96,0.00024657,3]
[329454487,1718374314031,-500.0,0.00024657,3]
[329454488,1718374314052,-977.11,0.00024657,3]
[329454489,1718374314067,-500.0,0.00024657,3]
[329454490,1718374314091,-730.87,0.00024657,3]
[329454491,1718374314117,-500.0,0.00024657,3]
[329454492,1718374314134,-500.0,0.00024657,3]
[329454493,1718374314164,-527.46857511,0.00024657,3]
[329454494,1718374314192,-165.60891842,0.00024657,3]
[329454495,1718374314236,-500.0,0.00024657,3]
[329454496,1718374314280,-1011.97,0.00024657,3]
[329454497,1718374314301,-500.0,0.00024657,3]
[329454498,1718374314314,-1520.69,0.00024657,3]
[329454499,1718374314325,-500.0,0.00024657,3]
[329454500,1718374314336,-1000.0,0.00024658,2]
[329454501,1718374314347,-1000.0,0.00024658,2]
[329454502,1718374314360,-1000.0,0.00024658,2]
[329454503,1718374314392,-1000.0,0.00024658,2]
[329454504,1718374314424,-1000.0,0.00024658,2]
[329454505,1718374314462,-1000.0,0.00024658,2]
[329454506,1718374314487,-1000.0,0.00024658,2]
[329454507,1718374314500,-1000.0,0.00024658,2]
[329454508,1718374314566,-1000.0,0.00024658,2]
[329454509,1718374314579,-1000.0,0.00024658,2]
[329454510,1718374314599,-1000.0,0.00024658,2]
[329454511,1718374314617,-1000.0,0.00024658,2]
[329454512,1718374314637,-1000.0,0.00024658,2]
[329454513,1718374314670,-1000.0,0.00024658,2]
[329454514,1718374314696,-1000.0,0.00024658,2]
[329454515,1718374314720,-1000.0,0.00024658,2]
[329454516,1718374314734,-1000.0,0.00024658,2]
[329454517,1718374314767,-1000.0,0.00024658,2]
[329454518,1718374314789,-1000.0,0.00024658,2]
[329454519,1718374314800,-1000.0,0.00024658,2]
[329454520,1718374314818,-511.0,0.00024658,2]
[329454521,1718374314834,-500.0,0.00024658,2]
[329454522,1718374314848,-500.0,0.00024658,2]
[329454523,1718374314862,-500.0,0.00024658,2]
[329454524,1718374314895,-481.25660544,0.00024658,2]
[329454525,1718374314920,-500.0,0.00024658,2]
[329454526,1718374314937,-500.0,0.00024658,2]
[329454527,1718374314950,-500.0,0.00024658,2]
[329454528,1718374314964,-500.0,0.00024658,2]
[329454529,1718374314978,-200.0,0.0002473,2]
[329454530,1718374314990,-600.0,0.00024794,2]
[329454531,1718374315008,-500.0,0.00024794,2]
[329454532,1718374315030,-800.0,0.00024794,2]
[329454533,1718374315043,-7788.91991268,0.00024798,2]
[329454534,1718374315062,-7788.91991259,0.00024798,2]
[329454535,1718374315073,-7788.91991259,0.00024798,2]
[329454536,1718374315104,-7788.91991259,0.00024798,2]
[329454537,1718374315120,-7788.91991259,0.00024798,2]
[329454538,1718374315147,-7788.91991259,0.00024798,2]
[329454539,1718374315158,-7788.91991259,0.00024798,2]
[329454540,1718374315170,-154.94345148,0.00024799,2]
[329454541,1718374315182,-154.94345145,0.00024799,2]
[329454542,1718374315229,-154.94345145,0.00024799,2]
[329454543,1718374315268,-154.94345145,0.00024799,2]
[329454544,1718374315282,-154.94345145,0.00024799,2]
[329454545,1718374315311,-151.0,0.00024813,3]
[329454546,1718374315326,-700.0,0.0002487,2]
[329454547,1718374315369,-600.49481796,0.0002487,2]
[329454548,1718374315396,-700.0,0.0002487,2]
[329454549,1718374315424,-400.0,0.0002487,2]
[329454550,1718374315438,-6827.21446011,0.000249,2]
[329454551,1718374315450,-155.27961372,0.000249,2]
[329454552,1718374315461,-469.405107,0.000249,2]
[329454553,1718374315476,-300.51160797,0.00024902,2]
[329454554,1718374315514,-654.7738712,0.00024914,2]
[329454555,1718374315554,-11102.7451852,0.00024914,2]
[329454556,1718374315578,-912.4641124,0.00024914,2]
[329454557,1718374315608,-2081.31,0.0002493,3]
[329454558,1718374315637,-2081.31,0.0002493,3]
[329454559,1718374315653,-508.36822444,0.00024931,3]
[329454560,1718374315675,-506.71589878,0.00024931,3]
[329454561,1718374315696,-500.0,0.00024931,3]
[329454562,1718374315712,-500.0,0.00024931,3]
[329454563,1718374315726,-513.93609722,0.00024931,3]
[329454564,1718374315753,-537.95,0.00024931,3]
[329454565,1718374315769,-500.0,0.00024931,3]
[329454566,1718374315792,-500.0,0.00024931,3]
[329454567,1718374315803,-500.0,0.00024931,3]
[329454568,1718374315831,-514.84920094,0.00024931,3]
[329454569,1718374315858,-500.0,0.00024931,3]
[329454570,1718374315888,-516.58775802,0.00024931,3]
[329454571,1718374315912,-522.6990539,0.00024931,3]
[329454572,1718374315949,-518.37618002,0.00024931,3]
[329454573,1718374315991,-500.0,0.00024931,3]
[329454574,1718374316057,-500.0,0.00024931,3]
[329454575,1718374316078,-499.98000133,0.00024931,3]
[329454576,1718374316139,-500.0,0.00024931,3]
[329454577,1718374316179,-500.0,0.00024931,3]
[329454578,1718374316228,-500.0,0.00024931,3]
[329454579,1718374316245,-500.0,0.00024931,3]
[329454580,1718374316262,-484.11930916,0.00024931,3]
[329454581,1718374316283,-500.0,0.00024931,3]
[329454582,1718374316304,-500.0,0.00024931,3]
[329454583,1718374316335,-500.0,0.00024931,3]
[329454584,1718374316347,-500.0,0.00024931,3]
[329454585,1718374316360,-578.52,0.00024931,3]
[329454586,1718374316373,-500.0,0.00024931,3]
[329454587,1718374316400,-517.82738552,0.00024931,3]
[329454588,1718374316436,-743.4,0.00024931,3]
[329454589,1718374316447,-500.0,0.00024931,3]
[329454590,1718374316484,-500.0,0.00024931,3]
[329454591,1718374316516,-258.15886898,0.00024931,3]
[329454592,1718374316555,-500.0,0.00024931,3]
[329454593,1718374316580,-529.98058648,0.00024931,3]
[329454594,1718374316605,-500.0,0.00024931,3]
[329454595,1718374316631,-500.0,0.00024931,3]
[329454596,1718374316644,-500.0,0.00024931,3]
[329454597,1718374316666,-500.0,0.00024931,3]
[329454598,1718374316678,-500.0,0.00024931,3]
[329454599,1718374316690,-500.0,0.00024931,3]
[329454600,1718374316752,-501.06047316,0.00024931,3]
[329454601,1718374316778,-500.0,0.00024931,3]
[329454602,1718374316800,-514.06909444,0.00024931,3]
[329454603,1718374316826,-500.0,0.00024931,3]
[329454604,1718374316850,-507.69569883,0.00024931,3]
[329454605,1718374316869,-250.0,0.00024931,3]
[329454606,1718374316881,-500.0,0.00024931,3]
[329454607,1718374316893,-500.0,0.00024931,3]
[329454608,1718374316909,-500.0,0.00024931,3]
[329454609,1718374316923,-500.0,0.00024931,3]
[329454610,1718374316944,-500.0,0.00024931,3]
[329454611,1718374316955,-500.0,0.00024931,3]
[329454612,1718374316969,-968.92,0.00024931,3]
[329454613,1718374316982,-500.0,0.00024931,3]
[329454614,1718374317003,-500.0,0.00024931,3]
[329454615,1718374317014,-825.06,0.00024931,3]
[329454616,1718374317025,-500.0,0.00024931,3]
[329454617,1718374317058,-701.8,0.00024931,3]
[329454618,1718374317080,-500.0,0.00024931,3]
[329454619,1718374317103,-500.0,0.00024931,3]
[329454620,1718374317139,-500.0,0.00024931,3]
[329454621,1718374317168,-500.0,0.00024931,3]
[329454622,1718374317200,-522.38,0.00024931,3]
[329454623,1718374317260,-500.0,0.00024931,3]
[329454624,1718374317273,-500.0,0.00024931,3]
[329454625,1718374317287,-500.0,0.00024931,3]
[329454626,1718374317300,-500.0,0.00024931,3]
[329454627,1718374317311,-500.0,0.00024931,3]
[329454628,1718374317331,-543.74,0.00024931,3]
[329454629,1718374317357,-500.0,0.00024931,3]
[329454630,1718374317374,-190.70224495,0.00024931,3]
[329454631,1718374317385,-527.1237054,0.00024931,3]
[329454632,1718374317401,-500.0,0.00024931,3]
[329454633,1718374317420,-500.0,0.00024931,3]
[329454634,1718374317432,-500.0,0.00024931,3]
[329454635,1718374317451,-500.0,0.00024931,3]
[329454636,1718374317470,-500.0,0.00024931,3]
[329454637,1718374317485,-500.0,0.00024931,3]
[329454638,1718374317513,-567.6,0.00024931,3]
[329454639,1718374317541,-500.0,0.00024931,3]
[329454640,1718374317555,-500.0,0.00024931,3]
[329454641,1718374317602,-500.0,0.00024931,3]
[329454642,1718374317616,-668.49,0.00024931,3]
[329454643,1718374317627,-500.0,0.00024931,3]
[329454644,1718374317643,-500.0,0.00024931,3]
[329454645,1718374317664,-500.0,0.00024931,3]
[329454646,1718374317675,-500.0,0.00024931,3]
[329454647,1718374317686,-500.0,0.00024931,3]
[329454648,1718374317700,-500.0,0.00024931,3]
[329454649,1718374317714,-500.0,0.00024931,3]
[329454650,1718374317744,-500.0,0.00024931,3]
[329454651,1718374317765,-500.0,0.00024931,3]
[329454652,1718374317792,-500.0,0.00024931,3]
[329454653,1718374317809,-500.0,0.00024931,3]
[329454654,1718374317820,-541.48,0.00024931,3]
[329454655,1718374317849,-500.0,0.00024931,3]
[329454656,1718374317866,-500.0,0.00024931,3]
[329454657,1718374317888,-500.0,0.00024931,3]
[329454658,1718374317902,-639.52,0.00024931,3]
[329454659,1718374317916,-500.0,0.00024931,3]
[329454660,1718374317928,-500.0,0.00024931,3]
[329454661,1718374317940,-500.0,0.00024931,3]
[329454662,1718374317967,-500.0,0.00024931,3]
[329454663,1718374317980,-500.0,0.00024931,3]
[329454664,1718374318005,-500.0,0.00024931,3]
[329454665,1718374318028,-500.0,0.00024931,3]
[329454666,1718374318054,-500.0,0.00024931,3]
[329454667,1718374318077,-466.0,0.00024931,3]
[329454668,1718374318098,-500.0,0.00024931,3]